fUSD/lending_fUSD_20260430
["ID","MTS","AMOUNT","RATE_DAILY","PERIOD"]
[421345534,1777479053000,-170.128,0.00025,2]
[421345526,1777479053000,-150.0,0.00025,2]
[421345539,1777479053000,-5529.0,0.000251,3]
[421345549,1777479053000,-163.82293254,0.000254,14]
[421345541,1777479053000,-3662.8611119,0.00025147,77]
[421345540,1777479053000,-980.25329907,0.00025127,14]
[421345542,1777479053000,-980.25329907,0.00025197,30]
[421345527,1777479053000,-150.0,0.00025,2]
[421345550,1777479053000,-980.25329907,0.00025407,30]
[421345547,1777479053000,-668.01721764,0.00025352,7]
[421345546,1777479053000,-980.25329907,0.00025337,30]
[421345544,1777479053000,-500.0,0.00025206,7]
[421345548,1777479053000,-3377.89025055,0.00025377,77]
[421345554,1777479053000,-1250.79391356,0.00025611,2]
[421345545,1777479053000,-980.25329907,0.00025267,30]
[421345551,1777479053000,-980.25329907,0.00025477,30]
[421345553,1777479053000,-980.25329907,0.00025547,30]
[421345555,1777479053000,-980.25329907,0.00025618,60]
[421345552,1777479053000,-193.28,0.00025519,2]
[421345556,1777479053000,-980.25329907,0.00025688,60]
[421345501,1777479053000,-1802.78357785,0.00025,2]
[421345538,1777479053000,-163.82293254,0.00025058,14]
[421345532,1777479053000,-150.0,0.00025,2]
[421345535,1777479053000,-421.0,0.00025,2]
[421345529,1777479053000,-150.0,0.00025,2]
[421345498,1777479053000,-76186.80585161,0.00025,2]
[421345499,1777479053000,-1125.10221269,0.00025,2]
[421345497,1777479053000,-4838.0339757,0.00025,2]
[421345505,1777479053000,-2222.0509497,0.00025,2]
[421345504,1777479053000,-616.89305457,0.00025,2]
[421345503,1777479053000,-540.0,0.00025,2]
[421345506,1777479053000,-168.96294146,0.00025,2]
[421345511,1777479053000,-160.0,0.00025,7]
[421345528,1777479053000,-150.0,0.00025,2]
[421345508,1777479053000,-150.17687225,0.00025,2]
[421345512,1777479053000,-162.31979731,0.00025,7]
[421345507,1777479053000,-163.5866994,0.00025,2]
[421345509,1777479053000,-150.0,0.00025,2]
[421345510,1777479053000,-160.0,0.00025,10]
[421345515,1777479053000,-572.0990495,0.00025,2]
[421345513,1777479053000,-550.0,0.00025,2]
[421345520,1777479053000,-150.0,0.00025,2]
[421345522,1777479053000,-150.0,0.00025,2]
[421345524,1777479053000,-150.0,0.00025,2]
[421345521,1777479053000,-150.0,0.00025,2]
[421345525,1777479053000,-150.0,0.00025,2]
[421345518,1777479053000,-860.83228651,0.00025,2]
[421345517,1777479053000,-580.62462887,0.00025,2]
[421345519,1777479053000,-1041.19936628,0.00025,2]
[421345516,1777479053000,-186.90368879,0.00025,2]
[421345514,1777479053000,-160.0,0.00025,10]
[421345523,1777479053000,-651.30080309,0.00025,2]
[421345565,1777479054000,-980.25329907,0.00025968,60]
[421345566,1777479054000,-606.77936225,0.0002599,2]
[421345573,1777479054000,-2552.6,0.00026296,2]
[421345574,1777479054000,-1548.29133022,0.000263,2]
[421345563,1777479054000,-206.13,0.00025838,2]
[421345557,1777479054000,-543.05,0.000257,7]
[421345559,1777479054000,-350.0,0.00025753,2]
[421345558,1777479054000,-163.82293254,0.00025742,30]
[421345561,1777479054000,-980.25329907,0.00025828,60]
[421345562,1777479054000,-150.0,0.00025834,2]
[421345560,1777479054000,-980.25329907,0.00025758,60]
[421345567,1777479054000,-4567.5325641,0.00026,2]
[421345564,1777479054000,-980.25329907,0.00025898,60]
[421345569,1777479054000,-5529.0,0.00026,5]
[421345583,1777479054000,-553.523,0.000264,2]
[421345581,1777479054000,-905.0,0.0001863,5]
[421345576,1777479054000,-193.28,0.0002638,2]
[421345579,1777479054000,-4547.81977,0.000264,2]
[421345580,1777479054000,-1141.6,0.000264,2]
[421345577,1777479054000,-1667.56041076,0.000264,2]
[421345568,1777479054000,-218.60501717,0.00026,2]
[421345575,1777479054000,-450.0,0.00026301,2]
[421345572,1777479054000,-2853.58311217,0.0002625,2]
[421345582,1777479054000,-8594.4262,0.000264,2]
[421345570,1777479054000,-236.01,0.00026056,60]
[421345571,1777479054000,-163.82293254,0.00026084,60]
[421345578,1777479054000,-1866.82095484,0.000264,2]
[421345586,1777479058000,166.66,8.173e-05,2]
[421345588,1777479084000,4659.05,7.935e-05,2]
[421345589,1777479084000,5000.01,7.935e-05,2]
[421345590,1777479084000,397.13,7.935e-05,2]
[421345587,1777479084000,10000.01,7.935e-05,2]
[421345591,1777479135000,500000.0,0.0003013,120]
[421345592,1777479138000,200.0,7.935e-05,2]
[421345593,1777479152000,500000.0,0.0003013,120]
[421345594,1777479175000,560000.0,0.0003013,120]
[421345598,1777479308000,1600.0,7.935e-05,2]
[421345600,1777479486000,6787.8403,8.212e-05,2]
[421345601,1777479510000,777.49,7.935e-05,2]
[421345604,1777479627000,500.0,7.935e-05,2]
[421345664,1777479896000,200.0,7.935e-05,2]
[421345665,1777479923000,260.74,7.935e-05,2]
[421345669,1777479963000,200.95,6.108e-05,2]
[421345673,1777480061000,1852.42,7.935e-05,2]
[421345680,1777480129000,500.0,0.00029452,120]
[421345681,1777480165000,358.7710383,0.0003,120]
[421345685,1777480186000,4605.3896,8.212e-05,2]
[421345684,1777480186000,5000.01,8.212e-05,2]
[421345683,1777480186000,5000.01,8.212e-05,2]
[421345697,1777480231000,-3012.74790372,8.309e-05,2]
[421345694,1777480231000,-5000.0,8.303e-05,2]
[421345702,1777480231000,-300.0,8.441e-05,2]
[421345695,1777480231000,-160.70417944,8.303e-05,2]
[421345699,1777480231000,-1687.25209628,8.309e-05,2]
[421345701,1777480231000,-301.96683353,8.317e-05,2]
[421345700,1777480231000,-301.96683353,8.31e-05,2]
[421345696,1777480231000,-301.96683355,8.303e-05,2]
[421345734,1777480232000,-300.0,9.133e-05,2]
[421345718,1777480232000,-499.99,8.882e-05,2]
[421345721,1777480232000,-5591.37496913,8.882e-05,2]
[421345723,1777480232000,-1600.0,8.926e-05,2]
[421345722,1777480232000,-150.99,8.882e-05,2]
[421345736,1777480232000,-5172.50795729,9.133e-05,2]
[421345725,1777480232000,-2325.95220117,9.074e-05,2]
[421345740,1777480232000,-300.0,9.133e-05,2]
[421345720,1777480232000,-1957.41503087,8.882e-05,2]
[421345730,1777480232000,-2167.94381405,9.133e-05,2]
[421345742,1777480232000,-250.0,9.133e-05,2]
[421345727,1777480232000,-2832.05618595,9.133e-05,2]
[421345743,1777480232000,-320.0,9.186e-05,2]
[421345732,1777480232000,-300.0,9.133e-05,2]
[421345738,1777480232000,-5000.0,9.133e-05,2]
[421345741,1777480232000,-267.43319798,9.133e-05,2]
[421345719,1777480232000,-9999.99,8.882e-05,2]
[421345724,1777480232000,-166.66,8.982e-05,2]
[421345755,1777480232000,-166.66,9.522e-05,2]
[421345703,1777480232000,-1200.0,8.441e-05,2]
[421345705,1777480232000,-1193.7,8.442e-05,2]
[421345706,1777480232000,-999.99,8.442e-05,2]
[421345711,1777480232000,-299.99,8.442e-05,2]
[421345704,1777480232000,-150.0,8.441e-05,2]
[421345710,1777480232000,-166.66,8.442e-05,2]
[421345708,1777480232000,-1246.52576334,8.442e-05,2]
[421345709,1777480232000,-24999.99,8.442e-05,2]
[421345707,1777480232000,-2218.88423666,8.442e-05,2]
[421345714,1777480232000,-166.66,8.712e-05,2]
[421345713,1777480232000,-9999.99,8.442e-05,2]
[421345712,1777480232000,-9999.99,8.442e-05,2]
[421345715,1777480232000,-28685.98955771,8.712e-05,2]
[421345716,1777480232000,-964.69044229,8.712e-05,2]
[421345717,1777480232000,-2259.5145,8.882e-05,2]
[421345757,1777480232000,-4359.23,9.67e-05,2]
[421345745,1777480232000,-1680.0,9.285e-05,2]
[421345763,1777480232000,-1665.07,0.00010065,2]
[421345791,1777480232000,-166.66,0.00011288,2]
[421345798,1777480232000,-8064.68973366,0.00012,2]
[421345795,1777480232000,-1665.07,0.00011654,2]
[421345788,1777480232000,-200.0,0.00011138,2]
[421345796,1777480232000,-10000.0,0.0001188,2]
[421345797,1777480232000,-1600.0,0.00011902,2]
[421345793,1777480232000,-320.0,0.00011483,2]
[421345790,1777480232000,-736.0,0.00011235,2]
[421345789,1777480232000,-166.66,0.00011178,2]
[421345794,1777480232000,-166.66,0.00011507,2]
[421345800,1777480232000,-400.0,0.00012,2]
[421345802,1777480232000,-5402.76608939,0.00012,2]
[421345803,1777480232000,-255.51004428,0.00012,2]
[421345799,1777480232000,-533.19435917,0.00012,2]
[421345759,1777480232000,-205.0,9.8e-05,2]
[421345792,1777480232000,-166.66,0.00011397,2]
[421345787,1777480232000,-1665.07,0.00011124,2]
[421345784,1777480232000,-166.66,0.00010959,2]
[421345770,1777480232000,-320.0,0.00010335,2]
[421345744,1777480232000,-166.66,9.252e-05,2]
[421345765,1777480232000,-678.0,0.00010214,2]
[421345747,1777480232000,-255.0,9.285e-05,2]
[421345750,1777480232000,-1000.0,9.405e-05,2]
[421345752,1777480232000,-166.7,9.49e-05,2]
[421345768,1777480232000,-433.0,0.00010214,2]
[421345783,1777480232000,-150.0,0.00010959,2]
[421345774,1777480232000,-1665.07,0.00010594,2]
[421345778,1777480232000,-162.31979731,0.0001065,2]
[421345776,1777480232000,-207.43500361,0.0001065,2]
[421345772,1777480232000,-188.97,0.00010411,2]
[421345785,1777480232000,-250.0,0.00010971,2]
[421345780,1777480232000,-160.0,0.0001065,2]
[421345786,1777480232000,-166.66,0.00011068,2]
[421345782,1777480232000,-1600.0,0.0001091,2]
[421345801,1777480232000,-427.65,0.00012,2]
[421345761,1777480232000,-1600.0,9.918e-05,2]
[421345817,1777480238000,-663.97499999,0.00012,2]
[421345816,1777480238000,-4724.95570496,0.00012,2]
[421345819,1777480238000,-48993.48432967,0.00012,2]
[421345820,1777480238000,-829.67010334,0.00012,2]
[421345818,1777480238000,-36984.69245172,0.00012,2]
[421345839,1777480240000,-289.5,0.00012,2]
[421345837,1777480240000,-800.30798175,0.00012,2]
[421345838,1777480240000,-42704.41258368,0.00012,2]
[421345836,1777480240000,-55690.79748931,0.00012,2]
[421345835,1777480240000,-272.5845,0.00012,2]
[421345834,1777480240000,-268.20764578,0.00012,2]
[421345833,1777480240000,-1883.5120129,0.00012,2]
[421345832,1777480240000,-2018.596905,0.00012,2]
[421345864,1777480246000,-1644.03049878,0.00012615,2]
[421345865,1777480246000,-320.0,0.00012631,2]
[421345871,1777480246000,-1665.07,0.00013243,2]
[421345869,1777480246000,-250.0,0.00013,2]
[421345878,1777480246000,-500.0,0.00013698,2]
[421345870,1777480246000,-1000.0,0.00013148,2]
[421345873,1777480246000,-47.10238693,0.00013418,2]
[421345867,1777480246000,-4262.35,0.00012767,2]
[421345874,1777480246000,-1615.89761307,0.00013418,2]
[421345868,1777480246000,-25404.23280801,0.000129,2]
[421345866,1777480246000,-1665.07,0.00012713,2]
[421345860,1777480246000,-1000.0,0.00012371,2]
[421345872,1777480246000,-1220.0,0.00013418,2]
[421345863,1777480246000,-449.42363997,0.00012615,2]
[421345861,1777480246000,-500.0,0.00012547,2]
[421345859,1777480246000,-150.0,0.00012358,2]
[421345854,1777480246000,-661.03999474,0.00012,2]
[421345857,1777480246000,-1665.07,0.00012184,2]
[421345856,1777480246000,-103943.27817091,0.00012,2]
[421345855,1777480246000,-468.71861583,0.00012,2]
[421345858,1777480246000,-200.95,0.00012216,2]
[421345853,1777480246000,-489.96082688,0.00012,2]
[421345862,1777480246000,-500.0,0.000126,2]
[421345876,1777480246000,-502.19224822,0.00013696,2]
[421345875,1777480246000,-1350.0,0.00013418,2]
[421345877,1777480246000,-511.93508785,0.00013698,2]
[421345879,1777480246000,-2056.37354503,0.00013699,2]
[421345903,1777480246000,-3305.38534898,0.00015873,2]
[421345902,1777480246000,-6638.22229294,0.00015792,2]
[421345901,1777480246000,-250.0,0.0001561,2]
[421345898,1777480246000,-1665.07,0.00015362,2]
[421345899,1777480246000,-227.85037125,0.000154,2]
[421345897,1777480246000,-2000.0,0.00015085,2]
[421345896,1777480246000,-160.0,0.00015,2]
[421345895,1777480246000,-500.48979342,0.00015,2]
[421345894,1777480246000,-1827.0,0.00015,2]
[421345893,1777480246000,-300.0,0.00015,2]
[421345892,1777480246000,-200.0,0.00014952,2]
[421345900,1777480246000,-1840.92,0.00015532,2]
[421345888,1777480246000,-1665.07,0.00014832,2]
[421345890,1777480246000,-500.0,0.00014937,2]
[421345889,1777480246000,-500.0,0.00014937,2]
[421345887,1777480246000,-1665.07,0.00014302,2]
[421345880,1777480246000,-443.62645497,0.00013699,2]
[421345881,1777480246000,-1665.07,0.00013773,2]
[421345886,1777480246000,-200.0,0.000143,2]
[421345891,1777480246000,-500.0,0.00014937,2]
[421345884,1777480246000,-255.68,0.00014256,2]
[421345883,1777480246000,-200.0,0.000139,2]
[421345882,1777480246000,-320.0,0.0001378,2]
[421345885,1777480246000,-150.0,0.00014266,2]
[421345963,1777480247000,-421.17947868,0.00019178,2]
[421345959,1777480247000,-500.0,0.00019035,2]
[421345960,1777480247000,-1665.07,0.0001907,2]
[421345950,1777480247000,-25404.23280795,0.00018847,2]
[421345958,1777480247000,-344.0,0.00019,2]
[421345945,1777480247000,-500.0,0.00018481,2]
[421345956,1777480247000,-1013.0,0.00019,2]
[421345947,1777480247000,-1665.07,0.0001854,2]
[421345952,1777480247000,-2000.0,0.00018856,2]
[421345973,1777480247000,-2000.0,0.000199,2]
[421345955,1777480247000,-191.0,0.00019,2]
[421345974,1777480247000,-212.16,0.0002,2]
[421345976,1777480247000,-153.0,0.0002,2]
[421345968,1777480247000,-1663.0,0.00019418,2]
[421345975,1777480247000,-387.0,0.0002,2]
[421345966,1777480247000,-711.0,0.000192,2]
[421345965,1777480247000,-313.0,0.000192,2]
[421345962,1777480247000,-236.77939135,0.00019112,2]
[421345967,1777480247000,-1220.0,0.00019418,2]
[421345970,1777480247000,-1665.07,0.000196,2]
[421345971,1777480247000,-500.0,0.00019606,2]
[421345972,1777480247000,-197.2,0.00019726,7]
[421345969,1777480247000,-1350.0,0.00019418,2]
[421345953,1777480247000,-400.0,0.00019,2]
[421345978,1777480247000,-596.0,0.0002,2]
[421345964,1777480247000,-1000.0,0.000192,2]
[421345943,1777480247000,-1276.3,0.0001841,2]
[421345930,1777480247000,-500.0,0.0001742,2]
[421345939,1777480247000,-200.0,0.00018373,2]
[421345985,1777480247000,-344.0,0.0002,2]
[421345905,1777480247000,-1665.07,0.00015892,2]
[421345904,1777480247000,-22098.84745897,0.00015873,2]
[421345907,1777480247000,-3787.0,0.00016131,2]
[421345917,1777480247000,-150.02165402,0.00016438,7]
[421345909,1777480247000,-2000.0,0.000162,2]
[421345911,1777480247000,-1220.0,0.00016418,2]
[421345908,1777480247000,-758.0,0.00016131,2]
[421345915,1777480247000,-1276.3,0.00016438,2]
[421345910,1777480247000,-500.0,0.00016236,2]
[421345914,1777480247000,-1665.07,0.00016421,2]
[421345916,1777480247000,-150.02165402,0.00016438,7]
[421345912,1777480247000,-1663.0,0.00016418,2]
[421345913,1777480247000,-1350.0,0.00016418,2]
[421345919,1777480247000,-150.02165402,0.00016438,7]
[421345918,1777480247000,-150.02165402,0.00016438,7]
[421345921,1777480247000,-500.0,0.00016912,2]
[421345920,1777480247000,-187.46,0.00016712,2]
[421345932,1777480247000,-1665.07,0.00017481,2]
[421345935,1777480247000,-500.0,0.00017942,2]
[421345937,1777480247000,-1665.07,0.00018011,2]
[421345926,1777480247000,-350.0,0.00017,2]
[421345922,1777480247000,-1665.07,0.00016951,2]
[421345928,1777480247000,-216.64,0.0001704,2]
[421345924,1777480247000,-2000.0,0.00016971,2]
[421345941,1777480247000,-889.0,0.0001841,5]
[421345984,1777480247000,-157.34,0.0002,30]
[421345906,1777480247000,-910.0,0.00016131,2]
[421345979,1777480247000,-728.0,0.0002,2]
[421346012,1777480247000,-150.0,0.00021644,2]
[421346010,1777480247000,-500.0,0.00021619,2]
[421346014,1777480247000,-150.0,0.00021644,2]
[421346015,1777480247000,-159.04228364,0.00021644,2]
[421346016,1777480247000,-527.54,0.00021644,2]
[421346017,1777480247000,-150.0,0.00021644,2]
[421346018,1777480247000,-150.0,0.00021644,2]
[421346024,1777480247000,-258.97619122,0.00021644,2]
[421346020,1777480247000,-188.98823282,0.00021644,2]
[421346027,1777480247000,-150.0,0.00021644,2]
[421346022,1777480247000,-250.0,0.00021644,2]
[421346025,1777480247000,-150.0,0.00021644,2]
[421346026,1777480247000,-150.0,0.00021644,2]
[421346019,1777480247000,-150.0,0.00021644,2]
[421346021,1777480247000,-250.0,0.00021644,2]
[421346023,1777480247000,-250.0,0.00021644,2]
[421346029,1777480247000,-150.0,0.00021644,2]
[421346030,1777480247000,-230.47614937,0.00021644,2]
[421346032,1777480247000,-25404.23280795,0.0002182,2]
[421346031,1777480247000,-862.0,0.00021734,5]
[421346033,1777480247000,-5000.0,0.00021918,2]
[421346035,1777480247000,-202.541531,0.00021918,2]
[421346036,1777480247000,-527.54,0.00021918,2]
[421346034,1777480247000,-1000.0,0.00021918,2]
[421345987,1777480247000,-300.0,0.000201,10]
[421346007,1777480247000,-344.0,0.00021,2]
[421346009,1777480247000,-188.97,0.00021507,2]
[421346028,1777480247000,-224.06683627,0.00021644,2]
[421346011,1777480247000,-150.0,0.00021644,2]
[421346008,1777480247000,-174.53764254,0.00021424,2]
[421345986,1777480247000,-1117.0,0.00020067,2]
[421345982,1777480247000,-191.0,0.0002,2]
[421345977,1777480247000,-395.0,0.0002,2]
[421345983,1777480247000,-1013.0,0.0002,2]
[421345981,1777480247000,-446.0,0.0002,2]
[421345989,1777480247000,-500.0,0.00020194,2]
[421345990,1777480247000,-1276.3,0.00020381,2]
[421345988,1777480247000,-1665.07,0.00020129,2]
[421345999,1777480247000,-387.0,0.00021,2]
[421346000,1777480247000,-153.0,0.00021,2]
[421345991,1777480247000,-387.3268564,0.00020552,2]
[421345992,1777480247000,-2000.0,0.00020742,2]
[421345980,1777480247000,-200.0,0.0002,10]
[421345997,1777480247000,-256.91956682,0.00020973,2]
[421345996,1777480247000,-392.14835164,0.00020973,2]
[421346013,1777480247000,-150.0,0.00021644,2]
[421346005,1777480247000,-191.0,0.00021,2]
[421346006,1777480247000,-1013.0,0.00021,2]
[421346002,1777480247000,-596.0,0.00021,2]
[421346001,1777480247000,-395.0,0.00021,2]
[421346004,1777480247000,-446.0,0.00021,2]
[421345995,1777480247000,-29756.61,0.00020951,2]
[421345998,1777480247000,-450.0,0.00021,2]
[421345993,1777480247000,-6638.22229294,0.00020762,2]
[421345994,1777480247000,-500.0,0.000208,2]
[421346003,1777480247000,-728.0,0.00021,2]
[421346062,1777480248000,-2674.815,0.00021999,2]
[421346059,1777480248000,-150.0,0.00021918,2]
[421346058,1777480248000,-150.0,0.00021918,2]
[421346063,1777480248000,-256.538,0.00021999,2]
[421346065,1777480248000,-156.0,0.00022,2]
[421346068,1777480248000,-728.0,0.00022,2]
[421346067,1777480248000,-596.0,0.00022,2]
[421346064,1777480248000,-387.0,0.00022,2]
[421346072,1777480248000,-344.0,0.00022,2]
[421346066,1777480248000,-395.0,0.00022,2]
[421346070,1777480248000,-191.0,0.00022,2]
[421346069,1777480248000,-446.0,0.00022,2]
[421346071,1777480248000,-1013.0,0.00022,2]
[421346075,1777480248000,-527.54,0.00022192,2]
[421346084,1777480248000,-25652.25,0.00022562,2]
[421346057,1777480248000,-150.0,0.00021918,2]
[421346074,1777480248000,-664.0081176,0.00022167,2]
[421346073,1777480248000,-157.34,0.00022018,30]
[421346061,1777480248000,-154.57439995,0.00021918,2]
[421346040,1777480248000,-150.0,0.00021918,2]
[421346054,1777480248000,-150.0,0.00021918,2]
[421346076,1777480248000,-1276.3,0.00022353,2]
[421346039,1777480248000,-150.0,0.00021918,2]
[421346037,1777480248000,-150.0,0.00021918,2]
[421346038,1777480248000,-173.75155906,0.00021918,2]
[421346044,1777480248000,-150.0,0.00021918,2]
[421346041,1777480248000,-150.0,0.00021918,2]
[421346042,1777480248000,-150.0,0.00021918,2]
[421346043,1777480248000,-150.0,0.00021918,2]
[421346056,1777480248000,-150.0,0.00021918,2]
[421346045,1777480248000,-150.0,0.00021918,2]
[421346049,1777480248000,-150.0,0.00021918,2]
[421346046,1777480248000,-150.0,0.00021918,2]
[421346051,1777480248000,-150.0,0.00021918,2]
[421346048,1777480248000,-150.0,0.00021918,2]
[421346050,1777480248000,-150.0,0.00021918,2]
[421346053,1777480248000,-150.0,0.00021918,2]
[421346052,1777480248000,-150.0,0.00021918,2]
[421346055,1777480248000,-150.0,0.00021918,2]
[421346047,1777480248000,-150.0,0.00021918,2]
[421346078,1777480248000,-220.26809733,0.00022407,2]
[421346060,1777480248000,-150.0,0.00021918,2]
[421346079,1777480248000,-220.26809732,0.00022407,2]
[421346107,1777480248000,-387.0,0.00024,2]
[421346106,1777480248000,-149.1397117,0.00023863,2]
[421346104,1777480248000,-5016.5325475,0.000238,2]
[421346099,1777480248000,-150.0,0.00023227,2]
[421346101,1777480248000,-150.0,0.00023227,2]
[421346105,1777480248000,-185.8602883,0.00023863,2]
[421346108,1777480248000,-395.0,0.00024,2]
[421346111,1777480248000,-446.0,0.00024,2]
[421346102,1777480248000,-2000.0,0.000236,2]
[421346110,1777480248000,-728.0,0.00024,2]
[421346112,1777480248000,-209.98134273,0.00024,2]
[421346114,1777480248000,-721.74584029,0.00024,2]
[421346116,1777480248000,-346.67776139,0.00024,2]
[421346115,1777480248000,-42.97247586,0.00024,2]
[421346121,1777480248000,-1609.10100405,0.00024558,2]
[421346118,1777480248000,-397.0,0.00024144,2]
[421346117,1777480248000,-157.34,0.00024036,60]
[421346120,1777480248000,-150.0,0.00024518,4]
[421346113,1777480248000,-260.34944557,0.00024,2]
[421346103,1777480248000,-266.0,0.00023618,2]
[421346109,1777480248000,-596.0,0.00024,2]
[421346097,1777480248000,-150.0,0.00023227,4]
[421346100,1777480248000,-150.0,0.00023227,2]
[421346083,1777480248000,-527.54,0.00022466,2]
[421346077,1777480248000,-264.39,0.00022407,2]
[421346082,1777480248000,-1350.0,0.00022418,2]
[421346080,1777480248000,-220.26809732,0.00022407,2]
[421346092,1777480248000,-446.0,0.00023,2]
[421346089,1777480248000,-395.0,0.00023,2]
[421346087,1777480248000,-500.0,0.00023,2]
[421346094,1777480248000,-1013.0,0.00023,2]
[421346088,1777480248000,-387.0,0.00023,2]
[421346081,1777480248000,-1663.0,0.00022418,2]
[421346086,1777480248000,-527.54,0.0002274,2]
[421346095,1777480248000,-344.0,0.00023,2]
[421346093,1777480248000,-191.0,0.00023,2]
[421346085,1777480248000,-2000.0,0.00022628,2]
[421346096,1777480248000,-527.56,0.00023014,2]
[421346091,1777480248000,-728.0,0.00023,2]
[421346119,1777480248000,-1276.3,0.00024324,2]
[421346090,1777480248000,-596.0,0.00023,2]
[421346098,1777480248000,-150.0,0.00023227,2]
[421346122,1777480258000,152.0,0.00012395,30]
[421346123,1777480259000,152.0,0.00012407,30]
[421346125,1777480327000,3542.2004,8.212e-05,2]
[421346126,1777480343000,-2204.95954904,8.212e-05,2]
[421346127,1777480344000,-572.30111259,8.212e-05,2]
[421346128,1777480346000,-259.0,8.212e-05,2]
[421346129,1777480347000,-208.39654791,8.212e-05,2]
[421346130,1777480348000,-187.03293757,8.212e-05,2]
[421346131,1777480365000,-10000.01,8.212e-05,2]
[421346132,1777480366000,-172.0255236,8.212e-05,2]
[421346136,1777480472000,-983.25892248,8.212e-05,2]
[421346135,1777480472000,-10000.01,8.212e-05,2]
[421346137,1777480474000,-256.0,8.212e-05,2]
[421346138,1777480474000,-9744.01,8.212e-05,2]
[421346139,1777480474000,-10000.01,8.212e-05,2]
[421346140,1777480476000,-10000.01,8.212e-05,2]
[421346141,1777480477000,-10000.01,8.212e-05,2]
[421346144,1777480478000,-10000.01,8.212e-05,2]
[421346142,1777480478000,-662.19938871,8.211e-05,2]
[421346143,1777480478000,-9337.81061129,8.212e-05,2]
[421346145,1777480479000,-257.0,8.212e-05,2]
[421346146,1777480494000,1371.49,0.00030136,120]
[421346148,1777480499000,152.0,8.725e-05,7]
[421346149,1777480499000,152.0,8.872e-05,7]
[421346150,1777480500000,152.0,8.872e-05,7]
[421346151,1777480501000,152.0,8.881e-05,7]
[421346153,1777480502000,44.11821628,8.881e-05,7]
[421346152,1777480502000,152.0,8.881e-05,7]
[421346155,1777480508000,2862.162476,7.945e-05,2]
[421346157,1777480583000,4159.15485233,0.00028939,120]
[421346158,1777480584000,3526.53831601,0.0002707,120]
[421346159,1777480623000,-744.39770958,8.202e-05,2]
[421346160,1777480624000,-450.0,8.212e-05,2]
[421346161,1777480625000,-277.9744764,8.212e-05,2]
[421346162,1777480628000,-258.39654791,8.212e-05,2]
[421346163,1777480681000,300.0,8.211e-05,2]
[421346164,1777480741000,244.0,8.211e-05,2]
[421346169,1777481095000,2102.9985,8.112e-05,2]
[421346170,1777481102000,150.0,8.211e-05,2]
[421346171,1777481231000,-93136.01117121,8.212e-05,2]
[421346178,1777481432000,-250.0,8.62e-05,2]
[421346179,1777481432000,-2410.6831302,8.707e-05,2]
[421346180,1777481432000,-707.077469,8.707e-05,2]
[421346189,1777481432000,-158056.38067703,9.122e-05,2]
[421346181,1777481432000,-484.9132662,8.707e-05,2]
[421346182,1777481432000,-484.9132662,8.915e-05,2]
[421346187,1777481432000,-179662.85852946,9.122e-05,2]
[421346184,1777481432000,-150.0,9.121e-05,2]
[421346186,1777481432000,-207.2677,9.122e-05,2]
[421346183,1777481432000,-152.0,8.995e-05,7]
[421346188,1777481432000,-4353.3159567,9.122e-05,2]
[421346190,1777481432000,-517.29085576,9.122e-05,2]
[421346191,1777481432000,-5689.63699655,9.122e-05,2]
[421346192,1777481432000,-708.24423702,9.122e-05,2]
[421346193,1777481432000,-300.37999902,9.122e-05,2]